{"text_format":"1","workbook":"xlsx","n_sheets":1,"sheets":["Feuil1"],"not_rendered":{"charts":0,"images":0,"macros":1,"external_links":1,"defined_names":4,"comments":0,"pivot_tables":0},"unopened":[],"bounds":{"document_bytes":16777216,"sheet_cells":100000,"rows_first":2000,"rows_last":500,"rows_between":2000,"halvings":0,"cell_chars":16384,"cell_head_chars":4096},"cells_cut":0,"cells_raw":0,"read":"whole","date_system":"1900"}

{"sheet":"Feuil1","index":0,"n_rows":26,"n_cols":18,"rows_kept":26,"cut":false,"hidden":false,"merged":[]}
[]
[null,null,null,null,null,null,null,null,null,null,null,null,null,null,null,null,null,"chose"]
[null,null,null,null,null,null,null,null,null,null,null,null,null,null,null,"اختر_ الإجابة",{"$f":"IF(COUNTIF($C$7:$G$7,P3)=1,\"\",P3)","v":"اختر_ الإجابة"},{"$f":"IFERROR(INDEX($Q$3:$Q$8,SMALL(IF($Q$3:$Q$8<>\"\",ROW($Q$3:$Q$8)-2),ROWS($1:1))),\"\")","v":"اختر_ الإجابة"}]
[null,null,null,null,null,null,null,null,null,null,null,null,null,null,null,"الاختيار الأول",{"$f":"IF(COUNTIF($C$7:$G$7,P4)=1,\"\",P4)","v":""},{"$f":"IFERROR(INDEX($Q$3:$Q$8,SMALL(IF($Q$3:$Q$8<>\"\",ROW($Q$3:$Q$8)-2),ROWS($1:2))),\"\")","v":""}]
[null,null,null,null,null,null,null,null,null,null,null,null,null,null,null,"الاختيار الثاني",{"$f":"IF(COUNTIF($C$7:$N$7,P5)=1,\"\",P5)","v":""},{"$f":"IFERROR(INDEX($Q$3:$Q$8,SMALL(IF($Q$3:$Q$8<>\"\",ROW($Q$3:$Q$8)-2),ROWS($1:3))),\"\")","v":""}]
[null,null,null,null,null,null,null,null,null,null,null,null,null,null,null,"الاختيار الثالث",{"$f":"IF(COUNTIF($C$7:$G$7,P6)=1,\"\",P6)","v":""},{"$f":"IFERROR(INDEX($Q$3:$Q$8,SMALL(IF($Q$3:$Q$8<>\"\",ROW($Q$3:$Q$8)-2),ROWS($1:4))),\"\")","v":""}]
[null,"إجابة السؤال ( 1 )","الاختيار الثاني","الاختيار الرابع","الاختيار الأول","الاختيار الخامس","الاختيار الثالث",null,null,null,null,null,null,null,null,"الاختيار الرابع",{"$f":"IF(COUNTIF($C$7:$N$7,P7)=1,\"\",P7)","v":""},{"$f":"IFERROR(INDEX($Q$3:$Q$8,SMALL(IF($Q$3:$Q$8<>\"\",ROW($Q$3:$Q$8)-2),ROWS($1:5))),\"\")","v":""}]
[null,"إجابة السؤال ( 2 )","الاختيار الثالث",null,null,null,null,null,null,null,null,null,null,null,null,"الاختيار الخامس",{"$f":"IF(COUNTIF($C$7:$G$7,P8)=1,\"\",P8)","v":""},{"$f":"IFERROR(INDEX($Q$3:$Q$8,SMALL(IF($Q$3:$Q$8<>\"\",ROW($Q$3:$Q$8)-2),ROWS($1:6))),\"\")","v":""}]
[null,"إجابة السؤال ( 3 )",null,null,null,null,null,null,null,null,null,null,null,null,null,"اختر_ الإجابة",{"$f":"IF(COUNTIF($C$8:$G$8,P9)=1,\"\",P9)","v":"اختر_ الإجابة"},{"$f":"IFERROR(INDEX($Q$9:$Q$14,SMALL(IF($Q$9:$Q$14<>\"\",ROW($Q$9:$Q$14)-8),ROWS($1:1))),\"\")","v":"اختر_ الإجابة"}]
[null,"إجابة السؤال ( 4 )",null,null,null,null,null,null,null,null,null,null,null,null,null,"الاختيار الأول",{"$f":"IF(COUNTIF($C$8:$G$8,P10)=1,\"\",P10)","v":"الاختيار الأول"},{"$f":"IFERROR(INDEX($Q$9:$Q$14,SMALL(IF($Q$9:$Q$14<>\"\",ROW($Q$9:$Q$14)-8),ROWS($1:2))),\"\")","v":"الاختيار الأول"}]
[null,"إجابة السؤال ( 5 )",null,null,null,null,null,null,null,null,null,null,null,null,null,"الاختيار الثاني",{"$f":"IF(COUNTIF($C$8:$N$8,P11)=1,\"\",P11)","v":"الاختيار الثاني"},{"$f":"IFERROR(INDEX($Q$9:$Q$14,SMALL(IF($Q$9:$Q$14<>\"\",ROW($Q$9:$Q$14)-8),ROWS($1:3))),\"\")","v":"الاختيار الثاني"}]
[null,"إجابة السؤال ( 6 )",null,null,null,null,null,null,null,null,null,null,null,null,null,"الاختيار الثالث",{"$f":"IF(COUNTIF($C$8:$G$8,P12)=1,\"\",P12)","v":""},{"$f":"IFERROR(INDEX($Q$9:$Q$14,SMALL(IF($Q$9:$Q$14<>\"\",ROW($Q$9:$Q$14)-8),ROWS($1:4))),\"\")","v":"الاختيار الرابع"}]
[null,"إجابة السؤال ( 7 )",null,null,null,null,null,null,null,null,null,null,null,null,null,"الاختيار الرابع",{"$f":"IF(COUNTIF($C$8:$N$8,P13)=1,\"\",P13)","v":"الاختيار الرابع"},{"$f":"IFERROR(INDEX($Q$9:$Q$14,SMALL(IF($Q$9:$Q$14<>\"\",ROW($Q$9:$Q$14)-8),ROWS($1:5))),\"\")","v":"الاختيار الخامس"}]
[null,"إجابة السؤال ( 8 )",null,null,"",null,null,null,null,null,null,null,null,null,null,"الاختيار الخامس",{"$f":"IF(COUNTIF($C$8:$G$8,P14)=1,\"\",P14)","v":"الاختيار الخامس"},{"$f":"IFERROR(INDEX($Q$9:$Q$14,SMALL(IF($Q$9:$Q$14<>\"\",ROW($Q$9:$Q$14)-8),ROWS($1:6))),\"\")","v":""}]
[null,"إجابة السؤال ( 9 )"]
[null,"إجابة السؤال ( 10 )"]
[null,"إجابة السؤال ( 11 )"]
[null,"إجابة السؤال ( 12 )"]
[null,"إجابة السؤال ( 13 )"]
[null,"إجابة السؤال ( 14 )",null,null,null,null,null,null,null,null,null,null,null,null,null,null,null,{"$f":"IFERROR(INDEX($Q$3:$Q$8,SMALL(IF($Q$3:$Q$8<>\"\",ROW($Q$3:$Q$8)-2),ROWS($1:13))),\"\")","v":""}]
[null,"إجابة السؤال ( 15 )",null,null,null,null,null,null,null,null,null,null,null,null,null,null,null,{"$f":"IFERROR(INDEX($Q$3:$Q$8,SMALL(IF($Q$3:$Q$8<>\"\",ROW($Q$3:$Q$8)-2),ROWS($1:14))),\"\")","v":""}]
[null,"إجابة السؤال ( 16 )",null,null,null,null,null,null,null,null,null,null,null,null,null,null,null,{"$f":"IFERROR(INDEX($Q$3:$Q$8,SMALL(IF($Q$3:$Q$8<>\"\",ROW($Q$3:$Q$8)-2),ROWS($1:15))),\"\")","v":""}]
[null,"إجابة السؤال ( 17 )",null,null,null,null,null,null,null,null,null,null,null,null,null,null,null,{"$f":"IFERROR(INDEX($Q$3:$Q$8,SMALL(IF($Q$3:$Q$8<>\"\",ROW($Q$3:$Q$8)-2),ROWS($1:16))),\"\")","v":""}]
[null,"إجابة السؤال ( 18 )",null,null,null,null,null,null,null,null,null,null,null,null,null,null,null,{"$f":"IFERROR(INDEX($Q$3:$Q$8,SMALL(IF($Q$3:$Q$8<>\"\",ROW($Q$3:$Q$8)-2),ROWS($1:17))),\"\")","v":""}]
[null,"إجابة السؤال ( 19 )",null,null,null,null,null,null,null,null,null,null,null,null,null,null,null,{"$f":"IFERROR(INDEX($Q$3:$Q$8,SMALL(IF($Q$3:$Q$8<>\"\",ROW($Q$3:$Q$8)-2),ROWS($1:18))),\"\")","v":""}]
[null,"إجابة السؤال ( 20 )"]